fUST/lending_fUST_20250425
["ID","MTS","AMOUNT","RATE_DAILY","PERIOD"]
[358933445,1745555434077,-505.12787512,0.00016438,2]
[358933446,1745555434088,-502.39571615,0.00016438,2]
[358933447,1745555434098,-500.0,0.00016438,2]
[358933448,1745555434110,-500.0,0.00016438,2]
[358933449,1745555434120,-500.0,0.00016438,2]
[358933450,1745555434130,-504.28322995,0.00016438,2]
[358933451,1745555434140,-502.77383355,0.00016438,2]
[358933452,1745555434151,-506.26817454,0.00016438,2]
[358933453,1745555434161,-500.0,0.00016438,2]
[358933454,1745555434171,-500.0,0.00016438,2]
[358933455,1745555434182,-507.93338557,0.00016438,2]
[358933456,1745555434192,-500.0,0.00016438,2]
[358933457,1745555434201,-500.0,0.00016438,2]
[358933458,1745555434212,-503.22587351,0.00016438,2]
[358933459,1745555434222,-504.83017356,0.00016438,2]
[358933460,1745555434231,-991.39,0.00016438,2]
[358933461,1745555434242,-872.39,0.00016438,2]
[358933462,1745555434251,-500.0,0.00016438,2]
[358933463,1745555434261,-500.0,0.00016438,2]
[358933464,1745555434271,-500.0,0.00016438,2]
[358933465,1745555434281,-518.07113037,0.00016438,2]
[358933466,1745555434291,-941.05,0.00016438,2]
[358933467,1745555434300,-506.60207433,0.00016438,2]
[358933468,1745555434310,-500.0,0.00016438,2]
[358933469,1745555434320,-500.0,0.00016438,2]
[358933470,1745555434331,-500.0,0.00016438,2]
[358933471,1745555434341,-500.0,0.00016438,2]
[358933472,1745555434351,-506.06613486,0.00016438,2]
[358933473,1745555434361,-500.0,0.00016438,2]
[358933474,1745555434371,-500.0,0.00016438,2]
[358933475,1745555434382,-534.58011315,0.00016438,2]
[358933476,1745555434392,-500.0,0.00016438,2]
[358933477,1745555434403,-500.0,0.00016438,2]
[358933478,1745555434413,-500.0,0.00016438,2]
[358933479,1745555434423,-505.37463764,0.00016438,2]
[358933480,1745555434433,-500.0,0.00016438,2]
[358933481,1745555434443,-500.0,0.00016438,2]
[358933482,1745555434453,-1085.87,0.00016438,2]
[358933483,1745555434463,-584.2085556,0.00016438,2]
[358933484,1745555434473,-514.8906277,0.00016438,2]
[358933485,1745555434483,-500.0,0.00016438,2]
[358933486,1745555434493,-500.0,0.00016438,2]
[358933487,1745555434504,-497.44042415,0.00016438,2]
[358933488,1745555434514,-500.0,0.00016438,2]
[358933489,1745555434524,-500.0,0.00016438,2]
[358933490,1745555434535,-504.07195413,0.00016438,2]
[358933491,1745555434545,-500.0,0.00016438,2]
[358933492,1745555434554,-500.0,0.00016438,2]
[358933493,1745555434564,-500.0,0.00016438,2]
[358933494,1745555434575,-315.56068975,0.00016438,2]
[358933495,1745555434586,-500.0,0.00016438,2]
[358933496,1745555434597,-504.79583383,0.00016438,2]
[358933497,1745555434607,-500.0,0.00016438,2]
[358933498,1745555434618,-502.98658637,0.00016438,2]
[358933499,1745555434628,-500.0,0.00016438,2]
[358933500,1745555434638,-505.32599904,0.00016438,2]
[358933501,1745555434647,-883.81,0.00016438,2]
[358933502,1745555434658,-501.05479327,0.00016438,2]
[358933503,1745555434668,-511.32435976,0.00016438,2]
[358933504,1745555434679,-500.0,0.00016438,2]
[358933505,1745555434689,-500.0,0.00016438,2]
[358933506,1745555434699,-500.0,0.00016438,2]
[358933507,1745555434709,-506.56307389,0.00016438,2]
[358933508,1745555434720,-500.0,0.00016438,2]
[358933509,1745555434730,-500.0,0.00016438,2]
[358933510,1745555434740,-500.0,0.00016438,2]
[358933511,1745555434751,-500.0,0.00016438,2]
[358933512,1745555434761,-500.0,0.00016438,2]
[358933513,1745555434771,-501.61284749,0.00016438,2]
[358933514,1745555434781,-622.150619,0.00016438,2]
[358933515,1745555434790,-500.0,0.00016438,2]
[358933516,1745555434800,-500.0,0.00016438,2]
[358933517,1745555434810,-500.0,0.00016438,2]
[358933518,1745555434819,-500.0,0.00016438,2]
[358933519,1745555434829,-500.0,0.00016438,2]
[358933520,1745555434839,-500.0,0.00016438,2]
[358933521,1745555434849,-500.0,0.00016438,2]
[358933522,1745555434860,-555.1693421,0.00016438,2]
[358933523,1745555434870,-500.0,0.00016438,2]
[358933524,1745555434880,-500.0,0.00016438,2]
[358933525,1745555434890,-500.0,0.00016438,2]
[358933526,1745555434901,-501.59281953,0.00016438,2]
[358933527,1745555434912,-500.0,0.00016438,2]
[358933528,1745555434922,-500.0,0.00016438,2]
[358933529,1745555434932,-584.60716256,0.00016438,2]
[358933530,1745555434941,-500.0,0.00016438,2]
[358933531,1745555434959,-500.0,0.00016438,2]
[358933532,1745555434973,-500.0,0.00016438,2]
[358933533,1745555434987,-986.63,0.00016438,2]
[358933534,1745555434997,-500.0,0.00016438,2]
[358933535,1745555435007,-500.0,0.00016438,2]
[358933536,1745555435017,-268.85799321,0.00016438,2]
[358933537,1745555435027,-500.0,0.00016438,2]
[358933538,1745555435037,-500.0,0.00016438,2]
[358933539,1745555435047,-500.0,0.00016438,2]
[358933540,1745555435059,-500.0,0.00016438,2]
[358933541,1745555435069,-500.0,0.00016438,2]
[358933542,1745555435079,-500.0,0.00016438,2]
[358933543,1745555435090,-500.0,0.00016438,2]
[358933544,1745555435100,-999.02,0.00016438,2]
[358933545,1745555435110,-500.0,0.00016438,2]
[358933546,1745555435120,-500.0,0.00016438,2]
[358933547,1745555435130,-500.0,0.00016438,2]
[358933548,1745555435139,-973.0,0.00016438,2]
[358933549,1745555435150,-500.0,0.00016438,2]
[358933550,1745555435160,-500.0,0.00016438,2]
[358933551,1745555435171,-500.0,0.00016438,2]
[358933552,1745555435180,-504.65636746,0.00016438,2]
[358933553,1745555435190,-500.0,0.00016438,2]
[358933554,1745555435199,-500.0,0.00016438,2]
[358933555,1745555435209,-500.0,0.00016438,2]
[358933556,1745555435219,-500.0,0.00016438,2]
[358933557,1745555435229,-500.0,0.00016438,2]
[358933558,1745555435238,-500.0,0.00016438,2]
[358933559,1745555435249,-502.37701187,0.00016438,2]
[358933560,1745555435259,-500.0,0.00016438,2]
[358933561,1745555435269,-500.0,0.00016438,2]
[358933562,1745555435280,-500.0,0.00016438,2]
[358933563,1745555435291,-745.61,0.00016438,2]
[358933564,1745555435302,-500.0,0.00016438,2]
[358933565,1745555435311,-500.0,0.00016438,2]
[358933566,1745555435322,-500.0,0.00016438,2]
[358933567,1745555435332,-500.0,0.00016438,2]
[358933568,1745555435342,-500.0,0.00016438,2]
[358933569,1745555435352,-500.0,0.00016438,2]
[358933570,1745555435362,-500.0,0.00016438,2]
[358933571,1745555435373,-500.0,0.00016438,2]
[358933572,1745555435385,-500.0,0.00016438,2]
[358933573,1745555435396,-500.0,0.00016438,2]
[358933574,1745555435405,-557.74,0.00016438,2]
[358933575,1745555435415,-1124.18,0.00016438,2]
[358933576,1745555435426,-500.0,0.00016438,2]
[358933577,1745555435636,-500.0,0.00016438,2]
[358933578,1745555435646,-500.0,0.00016438,2]
[358933579,1745555435657,-500.0,0.00016438,2]
[358933580,1745555435668,-500.0,0.00016438,2]
[358933581,1745555435679,-500.0,0.00016438,2]
[358933582,1745555435690,-239.64051374,0.00016438,2]
[358933583,1745555435700,-500.0,0.00016438,2]
[358933584,1745555435710,-500.0,0.00016438,2]
[358933585,1745555435721,-500.0,0.00016438,2]
[358933586,1745555435731,-500.0,0.00016438,2]
[358933587,1745555435740,-500.0,0.00016438,2]
[358933588,1745555435750,-500.0,0.00016438,2]
[358933589,1745555435760,-500.0,0.00016438,2]
[358933590,1745555435770,-500.0,0.00016438,2]
[358933591,1745555435780,-177.47971858,0.00016438,2]
[358933592,1745555435789,-500.0,0.00016438,2]
[358933593,1745555435799,-522.9308207,0.00016438,2]
[358933594,1745555435808,-505.44174805,0.00016438,2]
[358933595,1745555435817,-500.0,0.00016438,2]
[358933596,1745555435827,-503.21381881,0.00016438,2]
[358933597,1745555435837,-502.10962349,0.00016438,2]
[358933598,1745555435846,-500.0,0.00016438,2]
[358933599,1745555435856,-500.0,0.00016438,2]
[358933600,1745555435866,-526.3625989,0.00016438,2]
[358933601,1745555435875,-500.0,0.00016438,2]
[358933602,1745555435884,-621.17306585,0.00016438,2]
[358933603,1745555435895,-501.5736326,0.00016438,2]
[358933604,1745555435904,-500.0,0.00016438,2]
[358933605,1745555435915,-514.25665936,0.00016438,2]
[358933606,1745555435925,-505.21976209,0.00016438,2]
[358933607,1745555435934,-502.8686004,0.00016438,2]
[358933608,1745555435944,-500.0,0.00016438,2]
[358933609,1745555435954,-500.0,0.00016438,2]
[358933610,1745555435964,-224.15103794,0.00016438,2]
[358933611,1745555435973,-923.85,0.00016438,2]
[358933612,1745555435987,-500.0,0.00016438,2]
[358933613,1745555435998,-500.0,0.00016438,2]
[358933614,1745555436007,-504.05875135,0.00016438,2]
[358933615,1745555436018,-506.66712402,0.00016438,2]
[358933616,1745555436027,-510.16633187,0.00016438,2]
[358933617,1745555436037,-516.04046853,0.00016438,2]
[358933618,1745555436048,-500.0,0.00016438,2]
[358933619,1745555436060,-500.0,0.00016438,2]
[358933620,1745555436070,-507.59228036,0.00016438,2]
[358933621,1745555436079,-500.0,0.00016438,2]
[358933622,1745555436090,-501.99125541,0.00016438,2]
[358933623,1745555436099,-500.0,0.00016438,2]
[358933624,1745555436109,-500.0,0.00016438,2]
[358933625,1745555436119,-500.0,0.00016438,2]
[358933626,1745555436128,-1062.96,0.00016438,2]
[358933627,1745555436138,-1812.65,0.00016438,2]
[358933628,1745555436148,-500.0,0.00016438,2]
[358933629,1745555436158,-500.0,0.00016438,2]
[358933630,1745555436168,-503.13703631,0.00016438,2]
[358933631,1745555436177,-1023.12,0.00016438,2]
[358933632,1745555436186,-500.0,0.00016438,2]
[358933633,1745555436196,-500.0,0.00016438,2]
[358933634,1745555436205,-500.0,0.00016438,2]
[358933635,1745555436215,-345.51185856,0.00016438,2]
[358933636,1745555436224,-500.0,0.00016438,2]
[358933637,1745555436233,-506.94827922,0.00016438,2]
[358933638,1745555436242,-500.0,0.00016438,2]
[358933639,1745555436251,-500.0,0.00016438,2]
[358933640,1745555436262,-500.0,0.00016438,2]
[358933641,1745555436271,-500.0,0.00016438,2]
[358933642,1745555436280,-503.98413219,0.00016438,2]
[358933643,1745555436289,-500.0,0.00016438,2]
[358933644,1745555436298,-500.0,0.00016438,2]
[358933645,1745555436307,-500.0,0.00016438,2]
[358933646,1745555436317,-500.0,0.00016438,2]
[358933647,1745555436326,-902.94,0.00016438,2]
[358933648,1745555436336,-500.0,0.00016438,2]
[358933649,1745555436345,-500.0,0.00016438,2]
[358933650,1745555436355,-500.0,0.00016438,2]
[358933651,1745555436364,-500.0,0.00016438,2]
[358933652,1745555436374,-500.0,0.00016438,2]
[358933653,1745555436383,-888.68,0.00016438,2]
[358933654,1745555436392,-500.0,0.00016438,2]
[358933655,1745555436401,-840.64,0.00016438,2]
[358933656,1745555436411,-500.0,0.00016438,2]
[358933657,1745555436420,-500.0,0.00016438,2]
[358933658,1745555436429,-546.6,0.00016438,2]
[358933659,1745555436438,-632.56350754,0.00016438,2]
[358933660,1745555436448,-500.0,0.00016438,2]
[358933661,1745555436458,-500.0,0.00016438,2]
[358933662,1745555436469,-500.0,0.00016438,2]
[358933663,1745555436478,-500.0,0.00016438,2]
[358933664,1745555436487,-500.0,0.00016438,2]
[358933665,1745555436498,-504.36551133,0.00016438,2]
[358933666,1745555436507,-503.13724868,0.00016438,2]
[358933667,1745555436517,-500.0,0.00016438,2]
[358933668,1745555436526,-500.0,0.00016438,2]
[358933669,1745555436536,-500.0,0.00016438,2]
[358933670,1745555436546,-502.32260382,0.00016438,2]
[358933671,1745555436555,-510.53764529,0.00016438,2]
[358933672,1745555436565,-1827.38,0.00016438,2]
[358933673,1745555436574,-501.61747392,0.00016438,2]
[358933674,1745555436584,-500.0,0.00016438,2]
[358933675,1745555436594,-1037.59,0.00016438,2]
[358933676,1745555436603,-500.0,0.00016438,2]
[358933677,1745555436613,-500.0,0.00016438,2]
[358933678,1745555436623,-500.0,0.00016438,2]
[358933679,1745555436632,-500.0,0.00016438,2]
[358933680,1745555436641,-562.6280318,0.00016438,2]
[358933681,1745555436651,-500.0,0.00016438,2]
[358933682,1745555436660,-500.0,0.00016438,2]
[358933683,1745555436670,-500.0,0.00016438,2]
[358933684,1745555436684,-1302.16,0.00016438,2]
[358933685,1745555436694,-500.0,0.00016438,2]
[358933686,1745555436704,-500.0,0.00016438,2]
[358933687,1745555436714,-500.0,0.00016438,2]
[358933688,1745555436723,-500.0,0.00016438,2]
[358933689,1745555436733,-500.0,0.00016438,2]
[358933690,1745555436743,-500.0,0.00016438,2]
[358933691,1745555436753,-506.49,0.00016438,2]
[358933692,1745555436763,-500.0,0.00016438,2]
[358933693,1745555436773,-500.0,0.00016438,2]
[358933694,1745555436782,-1131.62,0.00016438,2]
[358933695,1745555436792,-510.7842235,0.00016438,2]
[358933696,1745555436801,-500.0,0.00016438,2]
[358933697,1745555436810,-500.0,0.00016438,2]
[358933698,1745555436820,-500.0,0.00016438,2]
[358933699,1745555436830,-185.49681847,0.00016438,2]
[358933700,1745555436841,-500.0,0.00016438,2]
[358933701,1745555436851,-500.0,0.00016438,2]
[358933702,1745555436861,-506.40703137,0.00016438,2]
[358933703,1745555436872,-500.0,0.00016438,2]
[358933704,1745555436882,-500.0,0.00016438,2]
[358933705,1745555436893,-502.36038815,0.00016438,2]
[358933706,1745555436903,-503.39762299,0.00016438,2]
[358933707,1745555436913,-501.87318468,0.00016438,2]
[358933708,1745555436922,-500.0,0.00016438,2]
[358933709,1745555436932,-500.0,0.00016438,2]
[358933710,1745555436941,-500.0,0.00016438,2]
[358933711,1745555436951,-500.0,0.00016438,2]
[358933712,1745555436961,-500.0,0.00016438,2]
[358933713,1745555436971,-500.0,0.00016438,2]
[358933714,1745555436986,-500.0,0.00016438,2]
[358933715,1745555436996,-500.0,0.00016438,2]
[358933716,1745555437005,-500.0,0.00016438,2]
[358933717,1745555437015,-500.0,0.00016438,2]
[358933718,1745555437026,-500.0,0.00016438,2]
[358933719,1745555437036,-500.0,0.00016438,2]
[358933720,1745555437050,-500.0,0.00016438,2]
[358933721,1745555437060,-853.73,0.00016438,2]
[358933722,1745555437070,-500.0,0.00016438,2]
[358933723,1745555437080,-500.0,0.00016438,2]
[358933724,1745555437091,-500.0,0.00016438,2]
[358933725,1745555437100,-501.9953364,0.00016438,2]
[358933726,1745555437110,-502.39265295,0.00016438,2]
[358933727,1745555437120,-500.0,0.00016438,2]
[358933728,1745555437130,-500.0,0.00016438,2]
[358933729,1745555437140,-500.0,0.00016438,2]
[358933730,1745555437149,-500.0,0.00016438,2]
[358933731,1745555437159,-500.96830599,0.00016438,2]
[358933732,1745555437168,-500.0,0.00016438,2]
[358933733,1745555437179,-500.0,0.00016438,2]
[358933734,1745555437188,-500.0,0.00016438,2]
[358933735,1745555437197,-500.0,0.00016438,2]
[358933736,1745555437208,-500.0,0.00016438,2]
[358933737,1745555437218,-500.0,0.00016438,2]
[358933738,1745555437229,-982.37,0.00016438,2]
[358933739,1745555437239,-503.52552081,0.00016438,2]
[358933740,1745555437249,-1992.87,0.00016438,2]
[358933741,1745555437259,-856.13,0.00016438,2]
[358933742,1745555437268,-500.0,0.00016438,2]
[358933743,1745555437278,-500.0,0.00016438,2]
[358933744,1745555437288,-500.0,0.00016438,2]
[358933745,1745555437298,-500.0,0.00016438,2]
[358933746,1745555437308,-500.0,0.00016438,2]
[358933747,1745555437318,-669.37,0.00016438,2]
[358933748,1745555437328,-500.0,0.00016438,2]
[358933749,1745555437338,-500.0,0.00016438,2]
[358933750,1745555437349,-500.0,0.00016438,2]
[358933751,1745555437359,-500.0,0.00016438,2]
[358933752,1745555437369,-500.0,0.00016438,2]
[358933753,1745555437378,-500.0,0.00016438,2]
[358933754,1745555437388,-500.0,0.00016438,2]
[358933755,1745555437397,-500.0,0.00016438,2]
[358933756,1745555437406,-500.0,0.00016438,2]
[358933757,1745555437417,-553.40216145,0.00016438,2]
[358933758,1745555437426,-500.0,0.00016438,2]
[358933759,1745555437436,-500.0,0.00016438,2]
[358933760,1745555437445,-500.77714029,0.00016438,2]
[358933761,1745555437455,-500.0,0.00016438,2]
[358933762,1745555437465,-500.0,0.00016438,2]
[358933763,1745555437475,-500.0,0.00016438,2]
[358933764,1745555437485,-500.0,0.00016438,2]
[358933765,1745555437494,-500.0,0.00016438,2]
[358933766,1745555437503,-500.0,0.00016438,2]
[358933767,1745555437513,-500.0,0.00016438,2]
[358933768,1745555437522,-505.07474109,0.00016438,2]
[358933769,1745555437532,-509.65888562,0.00016438,2]
[358933770,1745555437541,-500.0,0.00016438,2]
[358933771,1745555437550,-500.0,0.00016438,2]
[358933772,1745555437560,-500.0,0.00016438,2]
[358933773,1745555437569,-500.0,0.00016438,2]
[358933774,1745555437579,-500.0,0.00016438,2]
[358933775,1745555437589,-500.0,0.00016438,2]
[358933776,1745555437598,-913.34,0.00016438,2]
[358933777,1745555437607,-500.0,0.00016438,2]
[358933778,1745555437616,-500.0,0.00016438,2]
[358933779,1745555437625,-500.0,0.00016438,2]
[358933780,1745555437635,-528.17434478,0.00016438,2]
[358933781,1745555437644,-500.0,0.00016438,2]
[358933782,1745555437653,-500.0,0.00016438,2]
[358933783,1745555437663,-505.34970763,0.00016438,2]
[358933784,1745555437672,-500.0,0.00016438,2]
[358933785,1745555437682,-500.0,0.00016438,2]
[358933786,1745555437692,-513.03462829,0.00016438,2]
[358933787,1745555437701,-500.0,0.00016438,2]
[358933788,1745555437710,-500.0,0.00016438,2]
[358933789,1745555437720,-500.0,0.00016438,2]
[358933790,1745555437729,-500.0,0.00016438,2]
[358933791,1745555437738,-500.0,0.00016438,2]
[358933792,1745555437747,-500.0,0.00016438,2]
[358933793,1745555437756,-565.61449972,0.00016438,2]
[358933794,1745555437766,-500.0,0.00016438,2]
[358933795,1745555437775,-500.0,0.00016438,2]
[358933796,1745555437784,-500.0,0.00016438,2]
[358933797,1745555437793,-2828.62,0.00016438,2]
[358933798,1745555437803,-500.0,0.00016438,2]
[358933799,1745555437812,-500.0,0.00016438,2]
[358933800,1745555437821,-500.0,0.00016438,2]
[358933801,1745555437831,-500.0,0.00016438,2]
[358933802,1745555437841,-500.0,0.00016438,2]
[358933803,1745555437850,-500.0,0.00016438,2]
[358933804,1745555437860,-500.0,0.00016438,2]
[358933805,1745555437869,-500.0,0.00016438,2]
[358933806,1745555437879,-500.0,0.00016438,2]
[358933807,1745555437888,-500.0,0.00016438,2]
[358933808,1745555437898,-500.0,0.00016438,2]
[358933809,1745555437907,-500.0,0.00016438,2]
[358933810,1745555437917,-500.0,0.00016438,2]
[358933811,1745555437928,-500.0,0.00016438,2]
[358933812,1745555437937,-500.0,0.00016438,2]
[358933813,1745555437947,-543.01,0.00016438,2]
[358933814,1745555437957,-500.0,0.00016438,2]
[358933815,1745555437966,-500.0,0.00016438,2]
[358933816,1745555437976,-500.0,0.00016438,2]
[358933817,1745555437989,-596.78144033,0.00016438,2]
[358933818,1745555437999,-500.0,0.00016438,2]
[358933819,1745555438009,-500.0,0.00016438,2]
[358933820,1745555438019,-1034.73,0.00016438,2]
[358933821,1745555438029,-500.0,0.00016438,2]
[358933822,1745555438039,-500.0,0.00016438,2]
[358933823,1745555438048,-519.84,0.00016438,2]
[358933825,1745555438059,-500.0,0.00016438,2]
[358933827,1745555438069,-500.0,0.00016438,2]
[358933829,1745555438078,-500.0,0.00016438,2]
[358933831,1745555438088,-500.0,0.00016438,2]
[358933834,1745555438098,-500.0,0.00016438,2]
[358933837,1745555438108,-504.18812585,0.00016438,2]
[358933839,1745555438118,-500.0,0.00016438,2]
[358933841,1745555438127,-500.0,0.00016438,2]
[358933842,1745555438137,-500.0,0.00016438,2]
[358933844,1745555438147,-500.0,0.00016438,2]
[358933845,1745555438157,-500.0,0.00016438,2]
[358933846,1745555438167,-503.94054561,0.00016438,2]
[358933847,1745555438177,-2424.55,0.00016438,2]
[358933848,1745555438186,-503.63586012,0.00016438,2]
[358933849,1745555438196,-1098.08248956,0.00016447,2]
[358933850,1745555438207,-500.0,0.00016472,2]
[358933851,1745555438218,-534.69340498,0.00016473,2]
[358933852,1745555438228,-500.0,0.00016473,2]
[358933853,1745555438239,-500.0,0.00016473,2]
[358933854,1745555438249,-574.75421798,0.00016473,2]
[358933855,1745555438259,-500.0,0.00016473,2]
[358933856,1745555438269,-420.10414455,0.00016473,2]
[358933857,1745555438278,-500.0,0.00016473,2]
[358933858,1745555438288,-500.0,0.00016473,2]
[358933859,1745555438297,-510.86515966,0.00016473,2]
[358933860,1745555438307,-255.2908098,0.00016473,2]
[358933861,1745555438318,-500.0,0.00016473,2]
[358933862,1745555438327,-500.0,0.00016473,2]
[358933863,1745555438336,-500.0,0.00016473,2]
[358933864,1745555438345,-500.0,0.00016473,2]
[358933865,1745555438354,-500.0,0.00016473,2]
[358933866,1745555438364,-500.0,0.00016473,2]
[358933867,1745555438373,-500.0,0.00016473,2]
[358933868,1745555438383,-500.0,0.00016473,2]
[358933869,1745555438392,-500.0,0.00016473,2]
[358933870,1745555438401,-1098.08248956,0.00016555,2]
[358933871,1745555438411,-1098.08248956,0.00016664,2]
[358933872,1745555438421,-500.0,0.00016702,2]
[358933873,1745555438430,-500.0,0.00016711,2]
[358933874,1745555438440,-500.0,0.00016711,2]
[358933875,1745555438449,-263.19,0.00016711,2]
[358933876,1745555438459,-500.0,0.00016712,2]
[358933877,1745555438469,-500.0,0.00016712,2]
[358933878,1745555438479,-500.0,0.00016712,2]
[358933879,1745555438488,-500.0,0.00016712,2]
[358933880,1745555438498,-500.0,0.00016712,2]
[358933881,1745555438508,-500.0,0.00016712,2]
[358933882,1745555438518,-444.98881305,0.00016712,2]
[358933883,1745555438528,-500.0,0.00016712,2]
[358933884,1745555438538,-500.0,0.00016712,2]
[358933885,1745555438547,-500.0,0.00016712,2]
[358933886,1745555438557,-500.0,0.00016712,2]
[358933887,1745555438567,-500.0,0.00016712,2]
[358933888,1745555438577,-500.0,0.00016712,2]
[358933889,1745555438588,-500.0,0.00016712,2]
[358933890,1745555438598,-500.0,0.00016712,2]
[358933891,1745555438608,-500.0,0.00016712,2]
[358933892,1745555438617,-500.0,0.00016712,2]
[358933893,1745555438627,-1000.0,0.00016712,2]
[358933894,1745555438636,-442.26675498,0.00016712,2]
[358933895,1745555438646,-452.64274838,0.00016712,2]
[358933896,1745555438655,-541.0,0.00016712,2]
[358933897,1745555438665,-500.0,0.00016712,2]
[358933898,1745555438799,-500.0,0.00016712,2]
[358933899,1745555438809,-500.0,0.00016712,2]
[358933900,1745555438819,-500.0,0.00016712,2]
[358933901,1745555438829,-461.28698241,0.00016712,2]
[358933902,1745555438841,-509.27209078,0.00016712,2]
[358933903,1745555438851,-502.07091625,0.00016712,2]
[358933904,1745555438861,-507.75871531,0.00016712,2]
[358933905,1745555438871,-504.73075488,0.00016712,2]
[358933906,1745555438881,-500.0,0.00016712,2]
[358933907,1745555438890,-500.0,0.00016712,2]
[358933908,1745555438901,-500.0,0.00016712,2]
[358933909,1745555438911,-500.0,0.00016712,2]
[358933910,1745555438921,-297.20605709,0.00016712,2]
[358933911,1745555438931,-500.0,0.00016712,2]
[358933912,1745555438940,-500.0,0.00016712,2]
[358933913,1745555438950,-500.0,0.00016712,2]
[358933914,1745555438960,-1015.01,0.00016712,2]
[358933915,1745555438969,-500.0,0.00016712,2]
[358933916,1745555438982,-500.0,0.00016712,2]
[358933917,1745555438992,-500.0,0.00016712,2]
[358933918,1745555439002,-500.0,0.00016712,2]
[358933919,1745555439012,-500.0,0.00016712,2]
[358933920,1745555439022,-500.0,0.00016712,2]
[358933921,1745555439031,-512.28222461,0.00016712,2]
[358933922,1745555439042,-991.39,0.00016712,2]
[358933923,1745555439052,-872.39,0.00016712,2]
[358933924,1745555439062,-500.0,0.00016712,2]
[358933925,1745555439072,-941.05,0.00016712,2]
[358933926,1745555439082,-500.0,0.00016712,2]
[358933927,1745555439093,-509.64573333,0.00016712,2]
[358933928,1745555439102,-1085.87,0.00016712,2]
[358933929,1745555439112,-514.291666,0.00016712,2]
[358933930,1745555439122,-500.0,0.00016712,2]
[358933931,1745555439133,-507.24049017,0.00016712,2]
[358933932,1745555439143,-512.17984472,0.00016712,2]
[358933933,1745555439152,-513.40053969,0.00016712,2]
[358933934,1745555439162,-883.81,0.00016712,2]
[358933935,1745555439172,-506.14091633,0.00016712,2]
[358933936,1745555439182,-504.93940176,0.00016712,2]
[358933937,1745555439192,-504.54190631,0.00016712,2]
[358933938,1745555439202,-505.61295957,0.00016712,2]
[358933939,1745555439211,-500.0,0.00016712,2]
[358933940,1745555439221,-500.0,0.00016712,2]
[358933941,1745555439231,-500.0,0.00016712,2]
[358933942,1745555439241,-503.68680594,0.00016712,2]
[358933943,1745555439251,-506.08316623,0.00016712,2]
[358933944,1745555439262,-523.30677335,0.00016712,2]
[358933945,1745555439272,-986.63,0.00016712,2]
[358933946,1745555439282,-999.02,0.00016712,2]
[358933947,1745555439291,-973.0,0.00016712,2]
[358933948,1745555439301,-151.0,0.00016712,2]
[358933949,1745555439310,-745.61,0.00016712,2]
[358933950,1745555439320,-500.0,0.00016712,2]
[358933951,1745555439330,-1124.18,0.00016712,2]
[358933952,1745555439340,-200.331963,0.00016712,2]
[358933953,1745555439349,-200.331963,0.00016712,2]
[358933954,1745555439358,-162.099151,0.00016712,2]
[358933955,1745555439368,-506.28959841,0.00016712,2]